Cogmind - Beta 10.2 @@@ ROGUE MODE // 2022.01.05 @ 00:28:05 Player: 1012Q Result: Destroyed by G-47 Trooper with Particle Gun Performance ------------- Evolutions (2) 1000 Regions Visited (4) 800 Robots Destroyed (49) 245 Value Destroyed (1135) 1135 Prototype IDs (5) 100 Alien Tech Used (0) 0 Bonus (-197) -197 TOTAL SCORE: 3083 Bonus ------- Friendly Fire -197 Cogmind --------- Core Integrity 0/550 Matter 285/300 Energy 19/100 System Corruption 5% Temperature Cool (9) Movement Core (50) Location -8/Materials Parts ------- > --- POWER (3) -------- (None) > --- PROPULSION (2) --- (None) > --- UTILITY (2) ------ (None) > --- WEAPON (4) ------- (None) > --- INVENTORY (4) ---- Improved Treads Titanium Leg Small Matter Pod (50) Signal Interpreter Peak State ------------ > --- POWER ------------ Ion Engine Cooled Ion Engine Light Nuclear Core > --- PROPULSION ------- Improved Treads Aluminum Leg > --- UTILITY ---------- Small Storage Unit Medium Armor Plating > --- WEAPON ----------- Light Cannon Rocket Launcher > --- INVENTORY -------- Wheel Small Matter Pod Signal Interpreter Light Assault Rifle [Rating: 16] Favorites ----------- Power Ion Engine Engine Ion Engine Power Core Light Nuclear Core Propulsion Aluminum Leg Treads Improved Treads Leg Aluminum Leg Wheel Wheel Utility Small Storage Unit Device Particle Charger Storage Small Storage Unit Protection Medium Armor Plating Weapon Light Assault Rifle Energy Gun Small Laser Energy Cannon Heavy Particle Cannon Ballistic Gun Light Assault Rifle Ballistic Cannon Light Cannon Launcher Rocket Launcher Build | -11 -10 -9 -9 -8 ------- Run | Scr Mat Mat Min Mat Slots Evolved 4 | . . 2 . 2 Power 2 | . . 2 . . Propulsion . | . . . . . Utility . | . . . . . Weapon 2 | . . . . 2 Parts Attached 44 | 3 9 12 3 17 Power 10 | . 2 6 . 2 Engine 9 | . 2 5 . 2 Core 1 | . . 1 . . Reactor . | . . . . . Propulsion 13 | 2 3 1 2 5 Treads 2 | . . 1 . 1 Leg 7 | . 3 . 2 2 Wheel 4 | 2 . . . 2 Hover . | . . . . . Flight . | . . . . . Utility 5 | . 2 1 . 2 Device 2 | . . . . 2 Storage 2 | . 2 . . . Processor . | . . . . . Hackware . | . . . . . Protection 1 | . . 1 . . Artifact . | . . . . . Weapon 16 | 1 2 4 1 8 Energy Gun 5 | . 1 . . 4 Energy Cannon 3 | . . . . 3 Ballistic Gun 6 | 1 1 2 1 1 Ballistic Cannon 1 | . . 1 . . Launcher 1 | . . 1 . . Special Weapon . | . . . . . Impact Weapon . | . . . . . Slashing Weapon . | . . . . . Piercing Weapon . | . . . . . Special Melee Weapon . | . . . . . Unidentified Prototypes 3 | . . 1 . 2 Parts Lost 29 | . 1 7 . 21 Power 8 | . . 3 . 5 Propulsion 6 | . 1 1 . 4 Utility 4 | . . . . 4 Weapon 11 | . . 3 . 8 Highest Loss Streak 7 | . 1 7 . 5 Average Slot Usage (%) 71 | . 79 81 95 37 Engine 14 | . 8 19 22 7 Core 4 | . . 5 11 . Treads 3 | . . 7 6 . Leg 8 | . 5 8 11 9 Wheel 5 | . 22 . . 2 Storage 13 | . 18 18 11 7 Protection 3 | . . 3 11 . Energy Gun 2 | . 6 4 . 1 Ballistic Gun 7 | . 17 7 2 3 Ballistic Cannon 2 | . . 3 8 . Launcher 3 | . . 3 11 . Naked Turns 5 | . . . . 5 Heaviest Build 36 | 1 12 36 36 36 Greatest Support 34 | 3 20 23 23 34 Greatest Overweight (x) 4 | . 1 1 3 4 Average Overweight (x) . | . . . 1 . Largest Inventory Capacity 6 | 4 6 6 6 6 Average Capacity 5 | 4 5 6 6 5 Most Carried 6 | 1 3 6 6 6 Average Carried 3 | . . 3 4 4 Final Capacity 6 | 4 6 6 6 4 Final Carried 5 | . 2 5 5 4 Class Distribution -------------------- 66% | Mutant 33% | Scavenger-Mutant Dominant Class ---------------- Mutant | -10/Materials Scavenger-Mutant | -9/Materials Mutant | -9/Mines Mutant | -8/Materials Resources | -11 -10 -9 -9 -8 ----------- Run | Scr Mat Mat Min Mat Matter Collected 999 | 230 154 233 134 248 Remotely . | . . . . . Salvage Created 1381 | . 207 476 161 537 Parts 85 | . 22 42 3 18 Haulers Intercepted 1 | . . . . 1 Recyclers Shooed . | . . . . . Parts Field Recycled . | . . . . . Retrieved Matter . | . . . . . Parts Self-Destructed . | . . . . . Prevented . | . . . . . Kills | -11 -10 -9 -9 -8 ------- Run | Scr Mat Mat Min Mat Combat Hostiles Destroyed 36 | . 7 15 3 11 Guns 26 | . 7 12 . 7 Cannons 6 | . . 2 . 4 AOE 4 | . . 1 3 . Classes Destroyed 11 | . 3 5 1 2 Worker 4 | . . 4 . . Builder 1 | . . 1 . . Tunneler 2 | . 1 1 . . Hauler 1 | . . . . 1 Recycler 2 | . . 1 1 . Watcher 3 | . . 3 . . Swarmer 14 | . 3 9 . 2 Grunt 17 | . 4 5 2 6 Brawler 1 | . . . . 1 Duelist 1 | . . . 1 . Sentry 3 | . . 1 . 2 Best Kill Streak 11 | . 3 11 3 4 Combat Bots Only 5 | . 3 5 3 3 Max Kills in Single Turn 4 | . 1 4 3 1 Gunslinging 1 | . . 1 . . Exploded 3 | . . 1 3 . Melee . | . . . . . Uniques/NPCs Destroyed . | . . . . . Combat | -11 -10 -9 -9 -8 -------- Run | Scr Mat Mat Min Mat Damage Taken 2984 | . 239 753 208 1784 Core 750 | . 67 116 5 562 Absorbed by Shields . | . . . . . Core Remaining (%) 80 | 100 73 . 69 . Volleys Fired 171 | . 49 47 6 69 Largest 3 | . 2 2 2 3 Hottest 183 | . 40 68 68 183 Shots Fired 227 | . 62 76 12 77 Gun 162 | . 62 55 . 45 Cannon 45 | . . 11 6 28 Launcher 20 | . . 10 6 4 Special . | . . . . . Kinetic 151 | . 62 50 6 33 Thermal 56 | . . 16 . 40 Explosive 20 | . . 10 6 4 Electromagnetic . | . . . . . Robot Hit Streak 10 | . 6 8 5 10 Robot Miss Streak 5 | . 4 5 5 3 Penetration Max . | . . . . . Secondary Targets 6 | . 1 4 . 1 Max Gunslinging Chain 1 | . 1 1 . 1 Shots Hit Robots 139 | . 35 45 7 52 Core Hits 101 | . 18 37 13 33 Critical Hits 1 | . . . . 1 Critical Kills . | . . . . . Critical Parts Destroyed 1 | . . . . 1 Melee Attacks . | . . . . . Impact . | . . . . . Slashing . | . . . . . Piercing . | . . . . . Sneak Attacks . | . . . . . Combat Hostiles . | . . . . . Follow-up Attacks . | . . . . . Damage Inflicted 3123 | . 307 1145 540 1131 Guns 1106 | . 307 299 . 500 Cannons 679 | . . 145 49 485 Explosions 1279 | . . 700 491 88 Melee . | . . . . . Ramming 59 | . . 1 . 58 Kinetic 986 | . 307 330 49 300 Thermal 799 | . . 114 . 685 Explosive 1279 | . . 700 491 88 Electromagnetic . | . . . . . Impact . | . . . . . Slashing . | . . . . . Piercing . | . . . . . Highest Corruption 5 | . . . . 5 Average Corruption 1 | . . . . 1 Corruption Purged . | . . . . . Overload Shots . | . . . . . Overflow Damage 90 | . . 66 . 24 Projectiles 18 | . . . . 18 Explosions 72 | . . 66 . 6 Melee . | . . . . . Knockbacks 1 | . . 1 . . Impact . | . . . . . Kinetic 1 | . . 1 . . Secondary . | . . . . . Self-Inflicted Damage 165 | . . 30 66 69 Shots 6 | . . 1 4 1 Rammed 22 | . . 1 . 21 Targets Rammed 23 | . . 1 . 22 Kicked 1 | . . . . 1 Crushed . | . . . . . Highest Temperature 358 | . 6 358 154 319 Average Temperature 96 | . 4 118 62 84 Received Heat Transfer 1215 | . 66 246 48 855 Effects 2 | . . 1 . 1 Energy Bleed 1 | . . 1 . . Short Circuit 1 | . . . . 1 Siege Activations . | . . . . . Robots Corrupted . | . . . . . Combat Hostiles . | . . . . . Parts Fried . | . . . . . Impact Corruptions . | . . . . . Robots Melted . | . . . . . Combat Hostiles . | . . . . . Parts Melted 1 | . . . . 1 Heat Transferred 1348 | . . 275 . 1073 Parts Sabotaged . | . . . . . Parts Stolen . | . . . . . Parts Stripped . | . . . . . Power Chain Reactions . | . . . . . Missiles Intercepted . | . . . . . Alert | -11 -10 -9 -9 -8 ------- Run | Scr Mat Mat Min Mat Peak Influence 412 | . 214 412 214 312 Initial 109 | . . 90 109 83 Average 181 | . 142 238 154 181 Maximum Alert Level 2 | . 1 2 1 1 Low Security (%) 57 | 100 69 27 74 63 Level 1 42 | . 30 71 25 36 Level 2 . | . . 1 . . Level 3 . | . . . . . Level 4 . | . . . . . Level 5 . | . . . . . High Security . | . . . . . Max Security . | . . . . . Squads Dispatched 5 | . 2 2 . 1 Investigation 1 | . 1 . . . Extermination . | . . . . . Reinforcement 4 | . 1 2 . 1 Assault . | . . . . . Garrison . | . . . . . Intercept . | . . . . . Construction Impeded 1 | . . 1 . . Haulers Reinforced . | . . . . . Stealth | -11 -10 -9 -9 -8 --------- Run | Scr Mat Mat Min Mat Distress Signals 4 | . 1 . . 3 Communications Jammed . | . . . . . Distress Signals . | . . . . . Times Spotted 69 | . 14 21 5 29 Peak Tracking Total 11 | . 4 6 3 11 Tactical Retreats 2 | . . . . 2 Traps | -11 -10 -9 -9 -8 ------- Run | Scr Mat Mat Min Mat Traps Triggered 1 | . . . . 1 Indirectly . | . . . . . Trap Hack Attempts . | . . . . . Triggered . | . . . . . Disarmed . | . . . . . Reprogrammed . | . . . . . Reused . | . . . . . Traps Extracted . | . . . . . Installed . | . . . . . Triggered . | . . . . . Machines | -11 -10 -9 -9 -8 ---------- Run | Scr Mat Mat Min Mat Machines Disabled 6 | . . 3 1 2 Max in Single Turn 2 | . . 2 1 1 Machines Sabotaged . | . . . . . Garrisons Compromised . | . . . . . Overloaded Fab Kills . | . . . . . Fab Network Shutdowns . | . . . . . Hacking | -11 -10 -9 -9 -8 --------- Run | Scr Mat Mat Min Mat Machines Accessed 5 | . 2 1 . 2 Terminals 3 | . 2 . . 1 Fabricators . | . . . . . Repair Stations 1 | . . . . 1 Recycling Units . | . . . . . Scanalyzers 1 | . . 1 . . Garrison Access . | . . . . . Total Hacks 15 | . 7 2 . 6 Successful 12 | . 5 2 . 5 Failed 3 | . 2 . . 1 Catastrophic . | . . . . . Database Lockouts . | . . . . . Manual . | . . . . . Terminals 9 | . 7 . . 2 Fabricators . | . . . . . Repair Stations 4 | . . . . 4 Recycling Units . | . . . . . Scanalyzers 2 | . . 2 . . Garrison Access . | . . . . . Terminal Hacks 7 | . 5 . . 2 Record 5 | . 5 . . . Prototype ID Bank 1 | . . . . 1 Alert Level 1 | . . . . 1 Fabricator Hacks . | . . . . . Repair Station Hacks 3 | . . . . 3 Scan Component 2 | . . . . 2 Repair 1 | . . . . 1 Recycling Unit Hacks . | . . . . . Scanalyzer 2 | . . 2 . . Insert Component 1 | . . 1 . . Analyze 1 | . . 1 . . Garrison Access Hacks . | . . . . . Unauthorized Hacks . | . . . . . Terminals . | . . . . . Fabricators . | . . . . . Repair Stations . | . . . . . Recycling Units . | . . . . . Scanalyzers . | . . . . . Garrison Access . | . . . . . Data Cores Recovered . | . . . . . Used . | . . . . . Hacking Detections 3 | . 1 . . 2 Full Trace Events 2 | . 1 . . 1 Feedback Events . | . . . . . Feedback Blocked . | . . . . . Robot Schematics Acquired . | . . . . . Robots Built . | . . . . . Matter . | . . . . . Time . | . . . . . Total Robot Build Rating . | . . . . . Part Schematics Acquired 1 | . . 1 . . Parts Built . | . . . . . Matter . | . . . . . Time . | . . . . . Total Part Build Rating . | . . . . . Parts Repaired 1 | . . . . 1 Time 38 | . . . . 38 Parts Recycled . | . . . . . Recycled Matter . | . . . . . Retrieved Matter . | . . . . . Retrieved Components . | . . . . . Parts Scanalyzed 1 | . . 1 . . Part Schematics Acquired 1 | . . 1 . . Parts Damaged . | . . . . . Bothacking | -11 -10 -9 -9 -8 ------------ Run | Scr Mat Mat Min Mat Used RIF Installer . | . . . . . Robots Hacked . | . . . . . Non-combat . | . . . . . Combat . | . . . . . Robot Hacks Applied . | . . . . . Relay Couplers Released . | . . . . . Robots Rewired . | . . . . . Allies Hacked . | . . . . . Hacks Repelled . | . . . . . Allies | -11 -10 -9 -9 -8 -------- Run | Scr Mat Mat Min Mat Total Allies . | . . . . . Largest Group . | . . . . . Highest-Rated Group . | . . . . . Highest-Rated Ally . | . . . . . Total Orders . | . . . . . Ally Attacks . | . . . . . Total Damage . | . . . . . Kills . | . . . . . Allies Corrupted . | . . . . . Allies Melted . | . . . . . Intel | -11 -10 -9 -9 -8 ------- Run | Scr Mat Mat Min Mat Robot Analysis Total . | . . . . . Derelict Logs Recovered 1 | . . . 1 . Drone Launches . | . . . . . Drone Recoveries . | . . . . . Exploration | -11 -10 -9 -9 -8 ------------- Run | Scr Mat Mat Min Mat Turns Passed 1793 | 24 362 506 384 517 Spaces Moved 1039 | 35 258 245 211 290 Core 180 | 35 29 . . 116 Treads 221 | . . 139 82 . Legs 437 | . 73 106 129 129 Wheels 201 | . 156 . . 45 Hover . | . . . . . Flight . | . . . . . Fastest Speed 50 | 50 50 120 150 50 Average Speed 123 | 50 95 148 171 100 Slowest Speed 250 | 50 150 180 210 250 Overloaded Moves . | . . . . . Propulsion Burnouts . | . . . . . Robots Hopped . | . . . . . Cave-ins Triggered . | . . . . . Exploration Rate (%) 30 | 2 39 26 51 33 Regions Visited 4 Branch Regions 1 Pre-discovered Areas 1 | . . . 1 . Known Exits Taken . | . . . . . Unknown Exits Taken 4 | 1 1 1 1 . Scrap Searched . | . . . . . Spaces Dug . | . . . . . Terrain Destroyed 158 | . . 62 53 43 Melee . | . . . . . Projectile 4 | . . . 1 3 AOE 154 | . . 62 52 40 Terrain Rammed . | . . . . . Walls Destroyed . | . . . . . Machines Disabled . | . . . . . Actions | -11 -10 -9 -9 -8 --------- Run | Scr Mat Mat Min Mat Total 1345 | 41 325 319 223 437 Wait 27 | 1 . . . 26 Move 1035 | 34 257 244 210 290 Hop . | . . . . . Pick Up 32 | 3 7 12 2 8 Fast Attach 6 | . . . . 6 Attach 36 | 3 8 11 3 11 Detach 8 | . 3 2 1 2 Swap 3 | . 1 1 . 1 Drop 4 | . . 1 1 2 Fire 171 | . 49 47 6 69 Melee . | . . . . . Ram 21 | . . . . 21 Kick 1 | . . . . 1 Crush 1 | . . 1 . . Escape Stasis . | . . . . . Rewire . | . . . . . Trap . | . . . . . Miscellaneous . | . . . . . Route ------- -11/Scrapyard -10/Materials (discovered 3 exits: *Mat / [*Min x2]) -9/Materials -9/Mines -8/Materials History --------- Turn | Location | Event 12 | -11/Scrapyard | Discovered new exit (range 16) 25 | -11/Scrapyard | Entered Materials 109 | -10/Materials | Discovered new exit (range 15) 232 | -10/Materials | Discovered new exit (range 16) 279 | -10/Materials | Discovered new exit (range 5) 387 | -10/Materials | Entered another Materials area 387 | -9/Materials | Evolved 2 slots: Power x2 649 | -9/Materials | Lost 7 parts (3p1n3w) 679 | -9/Materials | Build established: Scavenger-Mutant 753 | -9/Materials | Discovered new exit (range 14) 893 | -9/Materials | Entered Mines 1008 | -9/Mines | Build established: Mutant 1039 | -9/Mines | Learned location of Storage (-9) 1084 | -9/Mines | Discovered new exit (range 14) 1180 | -9/Mines | Joined a pair of Derelicts in attacking an 0b10 outpost 1277 | -9/Mines | Entered Materials 1277 | -8/Materials | Evolved 2 slots: Weapon x2 1334 | -8/Materials | Lost 5 parts (2p1n1u1w) 1539 | -8/Materials | Lost 3 parts (1p1u1w) 1640 | -8/Materials | Repaired Hvy. Particle Cannon? 1664 | -8/Materials | Core integrity fell below 50% 1682 | -8/Materials | Lost 4 parts (2p1n1w) 1774 | -8/Materials | Core integrity fell below 20% 1794 | -8/Materials | Destroyed by G-47 Trooper with Particle Gun Last Messages --------------- Lgt. Assault Rifle melted. S-10 Pest destroyed. K-01 Serf collects debris. Acquired Adv. Beam Rifle. K-01 Serf collects debris. S-10 Pest destroyed. K-01 Serf collects debris. G-47 Trooper destroyed. Switching to secondary target: G-47 Trooper. K-01 Serf collects debris. Adv. Beam Rifle destroyed. K-01 Serf collects debris. K-01 Serf destroyed. Acquired 14 matter. Adv. Beam Rifle destroyed. Acquired Faulty Adv. Beam Rifle. Malfunction: System corrupted (+4). Dropped Faulty Adv. Beam Rifle. Acquired Lrn. Tractor Beam. Lrn. Tractor Beam destroyed. Map ----- +----------------------------------------------------+ | #??????????????????????????????????????????????? | | #??????????????????????????????????????????????? | | #??????????????????????????????????????????????? | | #??????????????????????????????????????????????? | | #??????????????????????????????????????????????? | | #?????????????####?# ????????????????????????? | | #???????????? ????????????????????????? | | #????????????? ????????????????????????? | | #????????????? =/ ????????????????????????? | | #????????????? // ????????????????????????? | | #????????????? / #????????????????????????? | | ##########??????# !#????????????????????????? | | #??????# ! #????????????????????????? | | """ """ #??????# #????????????????????????? | | """ "R" #??????# """ !#????????????????????????? | | """ "]" #??????# """ #????????????????????????? | | #??????# """ #????????????????????????? | | ! ######## """ #????????????????????????? | | #+########%%%%%%# #????????????????????????? | | ###????#%""%%%# ########?????????????????? | | ]######%"Y%!%+ ! ??????????? | | =]%]]%%+%% % # #####+########?????????????????? | | *######% # #?# =^=[#?????????????????????? | | #####????# ! # #?# *gg%g#?????????????????????? | | #####????######## #?# =%!!=#?????????????????????? | | ! #???????????# #?# =*!@[#?????????????????????? | | #???????????# #?# ! #?????????????????????? | | #???????????# #?# #?????????????????????? | | #???????????# #?########?????????????????????? | | """ #???????????? ???????????????????????????????? | | """ #???????????? ???????????????????????????????? | | """ ????????????? ???????????????????????????????? | | ?????????????#???????????????????????????????? | | ###??????????????????????????????????????????????? | | ?????????????????????????????????????????????????? | | ?????????????????????????????????????????????????? | | ?????????????????????????????????????????????????? | | ?????????????????????????????????????????????????? | | ?????????????????????????????????????????????????? | | ?????????????????????????????????????????????????? | | ?????????????????????????????????????????????????? | | ?????????????????????????????????????????????????? | | ?????????????????????????????????????????????????? | | ?????????????????????????????????????????????????? | | ?????????????????????????????????????????????????? | | ?????????????????????????????????????????????????? | | ?????????????????????????????????????????????????? | | ?????????????????????????????????????????????????? | | ?????????????????????????????????????????????????? | | ?????????????????????????????????????????????????? | +----------------------------------------------------+ Best States ------------- Heat Dissipation 31 Energy Generation 28 Energy Capacity 490 Matter Stores 350 Matter Capacity 350 Sight Range 16 Terrain Scan Density 10 Armor Coverage 225 Evasion (%) 50 Recoil Reduction 1 Particle Charging 15 Item Schematics ----------------- Lgt. Assault Rifle | -9/Materials | Scanalyzed Robot Schematics ------------------ None Fabricated ------------ Nothing Alien Tech Used ----------------- None Achievements -------------- Part-time Mechanic Challenges ------------ None Game ------ Seed HugeGuidedMembrane Manual? 0 Play Time 00:37:16 Cumulative 7.7 hours Start 2022.01.04 @ 23:50:07 End 2022.01.05 @ 00:28:05 Sessions 1 Manual Loads 0 Difficulty Rogue Special Mode None Game No. 22 Rogue 22 Adventurer 0 Explorer 0 Win Type - Total 0 Types 0/0/0/0/0/0/0/0/0 Lore% 2 Gallery% 6 Achievement% 5 Wizard Run 0 Options --------- ASCII 1 Keyboard 0 Movement Mouse Keybinds 0 Fullscreen 1 Font 18/SmallcapsGlow Map View 76x50 Tactical HUD 0 Map Filters NONE Filters NONE Steam 1 RUN: 2042ca49-4b74-459e-b0b2-1e7f3ca017e3